fUSD/lending_fUSD_20240612
["ID","MTS","AMOUNT","RATE_DAILY","PERIOD"]
[329178312,1718152297299,-13300.03,0.00022602,2]
[329178313,1718152297308,-3056.61,0.00022602,2]
[329178314,1718152297319,-4887.15,0.00022602,2]
[329178315,1718152297329,-1422.63,0.00022602,2]
[329178316,1718152297339,-521.15,0.00022602,2]
[329178317,1718152297349,-3636.03,0.00022602,2]
[329178318,1718152297359,-500.0,0.00022602,2]
[329178319,1718152297369,-1437.79,0.00022602,2]
[329178320,1718152297380,-500.0,0.00022602,2]
[329178321,1718152297391,-1459.51,0.00022602,2]
[329178322,1718152297401,-2751.22,0.00022602,2]
[329178323,1718152297412,-500.0,0.00022602,2]
[329178324,1718152297423,-593.82,0.00022602,2]
[329178325,1718152297432,-1998.63,0.00022602,2]
[329178326,1718152297442,-649.40923625,0.00022602,2]
[329178327,1718152297452,-919.64,0.00022602,2]
[329178328,1718152297461,-938.25,0.00022602,2]
[329178329,1718152297472,-1206.33,0.00022602,2]
[329178330,1718152297483,-653.38,0.00022602,2]
[329178331,1718152297492,-500.0,0.00022602,2]
[329178332,1718152297502,-500.0,0.00022602,2]
[329178333,1718152297512,-4598.01,0.00022602,2]
[329178334,1718152297522,-1110.54,0.00022602,2]
[329178335,1718152297532,-2178.93,0.00022602,2]
[329178336,1718152297542,-3919.34,0.00022602,2]
[329178337,1718152297552,-500.0,0.00022602,2]
[329178338,1718152297562,-500.0,0.00022602,2]
[329178339,1718152297572,-2168.86,0.00022602,2]
[329178340,1718152297583,-988.74,0.00022602,2]
[329178341,1718152297594,-1758.54,0.00022602,2]
[329178342,1718152297604,-2592.38,0.00022602,2]
[329178343,1718152297614,-1057.94,0.00022602,2]
[329178344,1718152297624,-1265.05,0.00022602,2]
[329178345,1718152297634,-500.0,0.00022602,2]
[329178346,1718152297645,-500.0,0.00022602,2]
[329178347,1718152297657,-1220.32089914,0.00022623,2]
[329178348,1718152297668,-195.37293296,0.00022639,2]
[329178349,1718152297678,-162.091519,0.0002268,2]
[329178350,1718152297688,-216.122027,0.0002268,2]
[329178351,1718152297697,-164.247715,0.0002268,2]
[329178352,1718152297707,-164.247715,0.0002268,2]
[329178353,1718152297717,-587.826679,0.0002268,2]
[329178354,1718152297727,-2351.306719,0.0002268,2]
[329178355,1718152297738,-773.64,0.00022708,2]
[329178356,1718152297747,-1500.0,0.00022709,2]
[329178357,1718152297757,-1500.0,0.00022711,2]
[329178358,1718152297767,-2159.8686847,0.00022723,2]
[329178359,1718152297776,-4841.1374037,0.00022723,2]
[329178360,1718152297786,-69480.4166721,0.00022723,2]
[329178361,1718152297796,-660.0192443,0.00022723,2]
[329178362,1718152297806,-8089.4872054,0.00022723,2]
[329178363,1718152297815,-150.0,0.00022738,7]
[329178364,1718152297825,-824.78070262,0.00022738,5]
[329178365,1718152297834,-79709.50273915,0.00022739,2]
[329178366,1718152297844,-1529.3612238,0.00022739,2]
[329178367,1718152297854,-3187.03304584,0.00022739,2]
[329178368,1718152297863,-631.65,0.00022739,2]
[329178369,1718152297873,-500.0,0.00022739,2]
[329178370,1718152297883,-500.0,0.00022739,2]
[329178371,1718152297892,-250.0,0.00022739,2]
[329178372,1718152297905,-500.0,0.00022739,2]
[329178373,1718152297916,-500.0,0.00022739,2]
[329178374,1718152297928,-500.0,0.00022739,2]
[329178375,1718152297938,-500.0,0.00022739,2]
[329178376,1718152297949,-500.0,0.00022739,2]
[329178377,1718152297959,-500.0,0.00022739,2]
[329178378,1718152297970,-1099.52,0.00022739,2]
[329178379,1718152297980,-500.0,0.00022739,2]
[329178380,1718152297990,-1325.77,0.00022739,2]
[329178381,1718152298001,-500.0,0.00022739,2]
[329178382,1718152298011,-500.0,0.00022739,2]
[329178383,1718152298021,-543.55,0.00022739,2]
[329178384,1718152298031,-500.0,0.00022739,2]
[329178385,1718152298041,-500.0,0.00022739,2]
[329178386,1718152298051,-500.0,0.00022739,2]
[329178387,1718152298062,-810.56,0.00022739,2]
[329178388,1718152298072,-286.58462503,0.00022739,2]
[329178389,1718152298083,-500.0,0.00022739,2]
[329178390,1718152298093,-500.0,0.00022739,2]
[329178391,1718152298104,-563.6,0.00022739,2]
[329178392,1718152298118,-604.04,0.00022739,2]
[329178393,1718152298129,-500.0,0.00022739,2]
[329178394,1718152298139,-711.93,0.00022739,2]
[329178395,1718152298151,-555.37,0.00022739,2]
[329178396,1718152298161,-500.0,0.00022739,2]
[329178397,1718152298171,-485.09744847,0.00022739,2]
[329178398,1718152298181,-775.81,0.00022739,2]
[329178399,1718152298192,-500.0,0.00022739,2]
[329178400,1718152298202,-500.0,0.00022739,2]
[329178401,1718152298212,-748.54,0.00022739,2]
[329178402,1718152298221,-290.41711022,0.00022739,2]
[329178403,1718152298231,-419.41000152,0.00022739,2]
[329178404,1718152298241,-750.16,0.00022739,2]
[329178405,1718152298251,-199.06036036,0.00022739,2]
[329178406,1718152298261,-500.0,0.00022739,2]
[329178407,1718152298271,-500.0,0.00022739,2]
[329178408,1718152298280,-500.0,0.00022739,2]
[329178409,1718152298290,-500.0,0.00022739,2]
[329178410,1718152298299,-610.41353709,0.00022739,2]
[329178411,1718152298309,-500.0,0.00022739,2]
[329178412,1718152298319,-500.0,0.00022739,2]
[329178413,1718152298328,-500.0,0.00022739,2]
[329178414,1718152298339,-500.0,0.00022739,2]
[329178415,1718152298348,-500.0,0.00022739,2]
[329178416,1718152298358,-500.0,0.00022739,2]
[329178417,1718152298368,-789.95,0.00022739,2]
[329178418,1718152298379,-500.0,0.00022739,2]
[329178419,1718152298389,-500.0,0.00022739,2]
[329178420,1718152298399,-500.0,0.00022739,2]
[329178421,1718152298411,-966.66,0.00022739,2]
[329178422,1718152298420,-701.89,0.00022739,2]
[329178423,1718152298432,-500.0,0.00022739,2]
[329178424,1718152298442,-500.0,0.00022739,2]
[329178425,1718152298453,-540.75681407,0.00022739,2]
[329178426,1718152298463,-500.0,0.00022739,2]
[329178427,1718152298473,-529.44,0.00022739,2]
[329178428,1718152298483,-727.38,0.00022739,2]
[329178429,1718152298493,-538.09,0.00022739,2]
[329178430,1718152298504,-591.24,0.00022739,2]
[329178431,1718152298514,-200.0,0.00022739,2]
[329178432,1718152298525,-500.0,0.00022739,2]
[329178433,1718152298536,-729.66,0.00022739,2]
[329178434,1718152298546,-500.0,0.00022739,2]
[329178435,1718152298556,-500.0,0.00022739,2]
[329178436,1718152298567,-670.93,0.00022739,2]
[329178437,1718152298576,-559.6767464,0.00022739,2]
[329178438,1718152298587,-500.0,0.00022739,2]
[329178439,1718152298597,-500.0,0.00022739,2]
[329178440,1718152298607,-523.2543716,0.00022739,2]
[329178441,1718152298618,-500.0,0.00022739,2]
[329178442,1718152298629,-523.1,0.00022739,2]
[329178443,1718152298640,-988.71,0.00022739,2]
[329178444,1718152298650,-500.0,0.00022739,2]
[329178445,1718152298660,-500.0,0.00022739,2]
[329178446,1718152298671,-530.44,0.00022739,2]
[329178447,1718152298682,-595.33,0.00022739,2]
[329178448,1718152298693,-840.47,0.00022739,2]
[329178449,1718152298703,-643.3393742,0.00022739,2]
[329178450,1718152298713,-1941.81,0.00022739,2]
[329178451,1718152298724,-500.0,0.00022739,2]
[329178452,1718152298734,-561.48,0.00022739,2]
[329178453,1718152298746,-500.0,0.00022739,2]
[329178454,1718152298756,-800.04,0.00022739,2]
[329178455,1718152298767,-476.0406665,0.00022739,2]
[329178456,1718152298777,-1283.53,0.00022739,2]
[329178457,1718152298788,-704.89,0.00022739,2]
[329178458,1718152298798,-166.6023618,0.00022739,2]
[329178459,1718152298808,-1896.67,0.00022739,2]
[329178460,1718152298818,-500.0,0.00022739,2]
[329178461,1718152298828,-518.99,0.00022739,2]
[329178462,1718152298838,-527.34341355,0.00022739,2]
[329178463,1718152298848,-500.0,0.00022739,2]
[329178464,1718152298858,-500.0,0.00022739,2]
[329178465,1718152298868,-518.56,0.00022739,2]
[329178466,1718152298878,-1025.14,0.00022739,2]
[329178467,1718152298888,-500.0,0.00022739,2]
[329178468,1718152298898,-819.72,0.00022739,2]
[329178469,1718152298915,-1865.88,0.00022739,2]
[329178470,1718152298929,-500.0,0.00022739,2]
[329178471,1718152298939,-651.19,0.00022739,2]
[329178472,1718152298950,-826.56,0.00022739,2]
[329178473,1718152298960,-500.0,0.00022739,2]
[329178474,1718152298970,-1601.82,0.00022739,2]
[329178475,1718152298982,-1153.34,0.00022739,2]
[329178476,1718152298993,-1568.24,0.00022739,2]
[329178477,1718152299089,-544.75,0.00022739,2]
[329178478,1718152299100,-738.52,0.00022739,2]
[329178479,1718152299113,-840.37,0.00022739,2]
[329178480,1718152299123,-500.0,0.00022739,2]
[329178481,1718152299134,-500.0,0.00022739,2]
[329178482,1718152299145,-524.29329108,0.00022739,2]
[329178483,1718152299163,-729.39,0.00022739,2]
[329178484,1718152299174,-500.0,0.00022739,2]
[329178485,1718152299185,-615.88,0.00022739,2]
[329178486,1718152299199,-540.87,0.00022739,2]
[329178487,1718152299212,-1809.39,0.00022739,2]
[329178488,1718152299224,-1076.6,0.00022739,2]
[329178489,1718152299234,-500.0,0.00022739,2]
[329178490,1718152299245,-816.28,0.00022739,2]
[329178491,1718152299257,-504.47,0.00022739,2]
[329178492,1718152299267,-500.0,0.00022739,2]
[329178493,1718152299278,-500.0,0.00022739,2]
[329178494,1718152299289,-798.81,0.00022739,2]
[329178495,1718152299300,-703.67,0.00022739,2]
[329178496,1718152299312,-512.35,0.00022739,2]
[329178497,1718152299323,-661.03,0.00022739,2]
[329178498,1718152299334,-500.0,0.00022739,2]
[329178499,1718152299345,-2099.17,0.00022739,2]
[329178500,1718152299355,-1005.72,0.00022739,2]
[329178501,1718152299366,-500.0,0.00022739,2]
[329178502,1718152299376,-1340.89,0.00022739,2]
[329178503,1718152299386,-500.0,0.00022739,2]
[329178504,1718152299398,-783.34,0.00022739,2]
[329178505,1718152299410,-610.2,0.00022739,2]
[329178506,1718152299420,-1983.47,0.00022739,2]
[329178507,1718152299431,-1398.35,0.00022739,2]
[329178508,1718152299441,-500.0,0.00022739,2]
[329178509,1718152299452,-606.83,0.00022739,2]
[329178510,1718152299463,-621.86,0.00022739,2]
[329178511,1718152299474,-500.0,0.00022739,2]
[329178512,1718152299485,-614.92099686,0.00022739,2]
[329178513,1718152299495,-504.13,0.00022739,2]
[329178514,1718152299506,-907.37,0.00022739,2]
[329178515,1718152299517,-783.93,0.00022739,2]
[329178516,1718152299529,-1012.19,0.00022739,2]
[329178517,1718152299540,-500.0,0.00022739,2]
[329178518,1718152299550,-193.49341718,0.00022739,2]
[329178519,1718152299561,-1202.81,0.00022739,2]
[329178520,1718152299571,-1163.8,0.00022739,2]
[329178521,1718152299581,-500.0,0.00022739,2]
[329178522,1718152299592,-565.33,0.00022739,2]
[329178523,1718152299603,-606.13,0.00022739,2]
[329178524,1718152299613,-984.93,0.00022739,2]
[329178525,1718152299624,-1994.75,0.00022739,2]
[329178526,1718152299635,-1645.17,0.00022739,2]
[329178527,1718152299645,-500.0,0.00022739,2]
[329178528,1718152299656,-500.0,0.00022739,2]
[329178529,1718152299666,-771.29,0.00022739,2]
[329178530,1718152299677,-590.08,0.00022739,2]
[329178531,1718152299688,-1133.5,0.00022739,2]
[329178532,1718152299698,-500.0,0.00022739,2]
[329178533,1718152299709,-500.0,0.00022739,2]
[329178534,1718152299720,-500.0,0.00022739,2]
[329178535,1718152299730,-968.94,0.00022739,2]
[329178536,1718152299741,-1789.81,0.00022739,2]
[329178537,1718152299752,-500.0,0.00022739,2]
[329178538,1718152299762,-1439.21,0.00022739,2]
[329178539,1718152299772,-500.0,0.00022739,2]
[329178540,1718152299782,-500.0,0.00022739,2]
[329178541,1718152299792,-529.89,0.00022739,2]
[329178542,1718152299803,-500.0,0.00022739,2]
[329178543,1718152299813,-1448.71,0.00022739,2]
[329178544,1718152299823,-500.0,0.00022739,2]
[329178545,1718152299834,-1812.13,0.00022739,2]
[329178546,1718152299844,-514.1,0.00022739,2]
[329178547,1718152299855,-500.0,0.00022739,2]
[329178548,1718152299866,-500.0,0.00022739,2]
[329178549,1718152299876,-534.56,0.00022739,2]
[329178550,1718152299888,-500.0,0.00022739,2]
[329178551,1718152299899,-614.92,0.00022739,2]
[329178552,1718152299916,-1485.3,0.00022739,2]
[329178553,1718152299928,-500.0,0.00022739,2]
[329178554,1718152299938,-766.83,0.00022739,2]
[329178555,1718152299948,-633.23,0.00022739,2]
[329178556,1718152299960,-700.18,0.00022739,2]
[329178557,1718152299970,-916.34,0.00022739,2]
[329178558,1718152299980,-500.0,0.00022739,2]
[329178559,1718152299990,-627.02,0.00022739,2]
[329178560,1718152300001,-500.0,0.00022739,2]
[329178561,1718152300011,-500.0,0.00022739,2]
[329178562,1718152300022,-500.0,0.00022739,2]
[329178563,1718152300032,-500.0,0.00022739,2]
[329178564,1718152300042,-500.0,0.00022739,2]
[329178565,1718152300053,-604.68,0.00022739,2]
[329178566,1718152300063,-500.0,0.00022739,2]
[329178567,1718152300072,-517.38,0.00022739,2]
[329178568,1718152300083,-903.25,0.00022739,2]
[329178569,1718152300093,-500.0,0.00022739,2]
[329178570,1718152300104,-214.43869683,0.00022739,2]
[329178571,1718152300118,-1616.45,0.00022739,2]
[329178572,1718152300129,-500.0,0.00022739,2]
[329178573,1718152300139,-1465.81,0.00022739,2]
[329178574,1718152300150,-500.0,0.00022739,2]
[329178575,1718152300161,-1848.49,0.00022739,2]
[329178576,1718152300171,-500.0,0.00022739,2]
[329178577,1718152300182,-672.78,0.00022739,2]
[329178578,1718152300192,-742.65,0.00022739,2]
[329178579,1718152300203,-1031.5,0.00022739,2]
[329178580,1718152300213,-571.51855959,0.00022739,2]
[329178581,1718152300223,-500.0,0.00022739,2]
[329178582,1718152300235,-500.0,0.00022739,2]
[329178583,1718152300245,-945.42,0.00022739,2]
[329178584,1718152300256,-807.6,0.00022739,2]
[329178585,1718152300267,-521.83,0.00022739,2]
[329178586,1718152300277,-1377.76,0.00022739,2]
[329178587,1718152300288,-975.07,0.00022739,2]
[329178588,1718152300298,-504.6,0.00022739,2]
[329178589,1718152300308,-1135.56,0.00022739,2]
[329178590,1718152300319,-500.0,0.00022739,2]
[329178591,1718152300330,-735.45,0.00022739,2]
[329178592,1718152300340,-1889.55,0.00022739,2]
[329178593,1718152300351,-2234.48,0.00022739,2]
[329178594,1718152300361,-500.0,0.00022739,2]
[329178595,1718152300371,-500.0,0.00022739,2]
[329178596,1718152300382,-669.88,0.00022739,2]
[329178597,1718152300392,-902.77,0.00022739,2]
[329178598,1718152300403,-1437.12,0.00022739,2]
[329178599,1718152300413,-500.0,0.00022739,2]
[329178600,1718152300423,-872.07,0.00022739,2]
[329178601,1718152300433,-832.07,0.00022739,2]
[329178602,1718152300444,-595.17,0.00022739,2]
[329178603,1718152300454,-500.0,0.00022739,2]
[329178604,1718152300465,-506.33,0.00022739,2]
[329178605,1718152300475,-678.38,0.00022739,2]
[329178606,1718152300486,-500.0,0.00022739,2]
[329178607,1718152300497,-1748.56,0.00022739,2]
[329178608,1718152300507,-500.0,0.00022739,2]
[329178609,1718152300518,-766.68,0.00022739,2]
[329178610,1718152300529,-777.5,0.00022739,2]
[329178611,1718152300540,-1361.98,0.00022739,2]
[329178612,1718152300551,-500.0,0.00022739,2]
[329178613,1718152300561,-500.0,0.00022739,2]
[329178614,1718152300571,-500.0,0.00022739,2]
[329178615,1718152300582,-522.21,0.00022739,2]
[329178616,1718152300594,-500.0,0.00022739,2]
[329178617,1718152300605,-2220.69,0.00022739,2]
[329178618,1718152300615,-975.31,0.00022739,2]
[329178619,1718152300626,-500.0,0.00022739,2]
[329178620,1718152300637,-500.0,0.00022739,2]
[329178621,1718152300648,-864.77,0.00022739,2]
[329178622,1718152300659,-592.88,0.00022739,2]
[329178623,1718152300669,-500.0,0.00022739,2]
[329178624,1718152300680,-500.0,0.00022739,2]
[329178625,1718152300692,-664.93,0.00022739,2]
[329178626,1718152300702,-1633.51,0.00022739,2]
[329178627,1718152300712,-647.1,0.00022739,2]
[329178628,1718152300722,-500.0,0.00022739,2]
[329178629,1718152300733,-500.0,0.00022739,2]
[329178630,1718152300742,-500.0,0.00022739,2]
[329178631,1718152300758,-500.0,0.00022739,2]
[329178632,1718152300768,-758.29,0.00022739,2]
[329178633,1718152300777,-500.0,0.00022739,2]
[329178634,1718152300787,-1322.83,0.00022739,2]
[329178635,1718152300798,-500.0,0.00022739,2]
[329178636,1718152300808,-1150.01,0.00022739,2]
[329178637,1718152300818,-702.84,0.00022739,2]
[329178638,1718152300830,-500.0,0.00022739,2]
[329178639,1718152300840,-760.22,0.00022739,2]
[329178640,1718152300850,-500.0,0.00022739,2]
[329178641,1718152300859,-500.0,0.00022739,2]
[329178642,1718152300871,-500.0,0.00022739,2]
[329178643,1718152300881,-611.42,0.00022739,2]
[329178644,1718152300891,-500.0,0.00022739,2]
[329178645,1718152300902,-500.0,0.00022739,2]
[329178646,1718152300923,-500.0,0.00022739,2]
[329178647,1718152300934,-386.76,0.00022739,2]
[329178648,1718152300944,-1302.36,0.00022739,2]
[329178649,1718152300955,-500.0,0.00022739,2]
[329178650,1718152300965,-770.19,0.00022739,2]
[329178651,1718152300975,-583.36,0.00022739,2]
[329178652,1718152300986,-500.0,0.00022739,2]
[329178653,1718152300996,-500.0,0.00022739,2]
[329178654,1718152301007,-1251.7,0.00022739,2]
[329178655,1718152301017,-2724.7,0.00022739,2]
[329178656,1718152301027,-1242.44,0.00022739,2]
[329178657,1718152301037,-958.23,0.00022739,2]
[329178658,1718152301047,-715.59,0.00022739,2]
[329178659,1718152301057,-500.0,0.00022739,2]
[329178660,1718152301068,-581.19,0.00022739,2]
[329178661,1718152301079,-859.34,0.00022739,2]
[329178662,1718152301089,-2185.89,0.00022739,2]
[329178663,1718152301101,-1285.65,0.00022739,2]
[329178664,1718152301113,-565.93,0.00022739,2]
[329178665,1718152301123,-637.51,0.00022739,2]
[329178666,1718152301133,-500.0,0.00022739,2]
[329178667,1718152301144,-1828.02,0.00022739,2]
[329178668,1718152301156,-500.0,0.00022739,2]
[329178669,1718152301167,-1027.85,0.00022739,2]
[329178670,1718152301177,-1832.91,0.00022739,2]
[329178671,1718152301189,-500.0,0.00022739,2]
[329178672,1718152301201,-879.61,0.00022739,2]
[329178673,1718152301211,-1675.58,0.00022739,2]
[329178674,1718152301222,-843.32,0.00022739,2]
[329178675,1718152301232,-775.96,0.00022739,2]
[329178676,1718152301242,-546.12,0.00022739,2]
[329178677,1718152301253,-2473.16,0.00022739,2]
[329178678,1718152301263,-500.0,0.00022739,2]
[329178679,1718152301274,-1644.66,0.00022739,2]
[329178680,1718152301285,-6166.54,0.00022739,2]
[329178681,1718152301295,-608.83,0.00022739,2]
[329178682,1718152301305,-500.0,0.00022739,2]
[329178683,1718152301315,-1432.45,0.00022739,2]
[329178684,1718152301326,-11639.91,0.00022739,2]
[329178685,1718152301336,-684.92,0.00022739,2]
[329178686,1718152301347,-500.0,0.00022739,2]
[329178687,1718152301359,-720.68,0.00022739,2]
[329178688,1718152301369,-836.87,0.00022739,2]
[329178689,1718152301381,-508.30448567,0.00022739,2]
[329178690,1718152301392,-2116.39,0.00022739,2]
[329178691,1718152301404,-2982.93,0.00022739,2]
[329178692,1718152301415,-500.0,0.00022739,2]
[329178693,1718152301427,-6038.81,0.00022739,2]
[329178694,1718152301438,-500.0,0.00022739,2]
[329178695,1718152301449,-2381.43,0.00022739,2]
[329178696,1718152301459,-573.17383084,0.00022739,2]
[329178697,1718152301470,-544.79,0.00022739,2]
[329178698,1718152301481,-500.0,0.00022739,2]
[329178699,1718152301492,-3028.7,0.00022739,2]
[329178700,1718152301503,-500.0,0.00022739,2]
[329178701,1718152301513,-1373.33,0.00022739,2]
[329178702,1718152301524,-1677.62,0.00022739,2]
[329178703,1718152301535,-1337.01,0.00022739,2]
[329178704,1718152301546,-714.82,0.00022739,2]
[329178705,1718152301556,-500.0,0.00022739,2]
[329178706,1718152301567,-673.21,0.00022739,2]
[329178707,1718152301577,-8750.37,0.00022739,2]
[329178708,1718152301587,-500.0,0.00022739,2]
[329178709,1718152301597,-799.51,0.00022739,2]
[329178710,1718152301607,-5029.8,0.00022739,2]
[329178711,1718152301619,-1374.54,0.00022739,2]
[329178712,1718152301629,-55467.75,0.00022739,2]
[329178713,1718152301641,-14635.7,0.00022739,2]
[329178714,1718152301651,-500.0,0.00022739,2]
[329178715,1718152301661,-500.0,0.00022739,2]
[329178716,1718152301672,-1639.97,0.00022739,2]
[329178717,1718152301683,-1476.61,0.00022739,2]
[329178718,1718152301693,-500.0,0.00022739,2]
[329178719,1718152301704,-500.0,0.00022739,2]
[329178720,1718152301715,-1694.28,0.00022739,2]
[329178721,1718152301726,-611.49,0.00022739,2]
[329178722,1718152301736,-8487.8,0.00022739,2]
[329178723,1718152301746,-500.0,0.00022739,2]
[329178724,1718152301756,-500.0,0.00022739,2]
[329178725,1718152301766,-31639.75,0.00022739,2]
[329178726,1718152301777,-4233.25,0.00022739,2]
[329178727,1718152301787,-3757.38,0.00022739,2]
[329178728,1718152301797,-1040.34,0.00022739,2]
[329178729,1718152301807,-500.0,0.00022739,2]
[329178730,1718152301817,-516.4342356,0.00022739,2]
[329178731,1718152301828,-500.0,0.00022739,2]
[329178732,1718152301838,-1454.99,0.00022739,2]
[329178733,1718152301848,-859.52,0.00022739,2]
[329178734,1718152301858,-2491.31,0.00022739,2]
[329178735,1718152301869,-2280.28,0.00022739,2]
[329178736,1718152301879,-667.99,0.00022739,2]
[329178737,1718152301890,-500.0,0.00022739,2]
[329178738,1718152301900,-948.31,0.00022739,2]
[329178739,1718152301921,-3248.8,0.00022739,2]
[329178740,1718152301932,-1784.52,0.00022739,2]
[329178741,1718152301943,-2626.46,0.00022739,2]
[329178742,1718152301953,-500.0,0.00022739,2]
[329178743,1718152301963,-1004.2,0.00022739,2]
[329178744,1718152301973,-1145.88,0.00022739,2]
[329178745,1718152301984,-1408.1,0.00022739,2]
[329178746,1718152301994,-2273.45,0.00022739,2]
[329178747,1718152302004,-500.0,0.00022739,2]
[329178748,1718152302015,-1209.21,0.00022739,2]
[329178749,1718152302026,-930.43,0.00022739,2]
[329178750,1718152302040,-788.93,0.00022739,2]
[329178751,1718152302051,-13437.77,0.00022739,2]
[329178752,1718152302064,-1170.24,0.00022739,2]
[329178753,1718152302075,-1149.05,0.00022739,2]
[329178754,1718152302086,-3818.53,0.00022739,2]
[329178755,1718152302096,-500.0,0.00022739,2]
[329178756,1718152302111,-3130.09,0.00022739,2]
[329178757,1718152302122,-203.35276709,0.00022739,2]
[329178758,1718152302133,-937.79,0.00022739,2]
[329178759,1718152302144,-1310.08,0.00022739,2]
[329178760,1718152302156,-1636.15,0.00022739,2]
[329178761,1718152302166,-4252.32,0.00022739,2]
[329178762,1718152302177,-500.0,0.00022739,2]
[329178763,1718152302187,-500.0,0.00022739,2]
[329178764,1718152302199,-2992.8,0.00022739,2]
[329178765,1718152302209,-822.74,0.00022739,2]
[329178766,1718152302220,-1159.58,0.00022739,2]
[329178767,1718152302230,-2563.57,0.00022739,2]
[329178768,1718152302241,-500.0,0.00022739,2]
[329178769,1718152302253,-15717.99,0.00022739,2]
[329178770,1718152302263,-2005.55,0.00022739,2]
[329178771,1718152302275,-500.0,0.00022739,2]
[329178772,1718152302287,-6296.83,0.00022739,2]
[329178773,1718152302299,-3223.86,0.00022739,2]
[329178774,1718152302309,-693.01,0.00022739,2]
[329178775,1718152302319,-6945.2,0.00022739,2]
[329178776,1718152302330,-814.28,0.00022739,2]
[329178777,1718152302340,-508.33,0.00022739,2]
[329178778,1718152302352,-500.0,0.00022739,2]
[329178779,1718152302363,-393.25385016,0.00022739,2]
[329178780,1718152302375,-500.0,0.00022739,2]
[329178781,1718152302386,-1572.98,0.00022739,2]
[329178782,1718152302397,-601.01,0.00022739,2]
[329178783,1718152302408,-6193.09,0.00022739,2]
[329178784,1718152302420,-500.0,0.00022739,2]
[329178785,1718152302431,-500.0,0.00022739,2]
[329178786,1718152302441,-4096.16,0.00022739,2]
[329178787,1718152302452,-4787.7,0.00022739,2]
[329178788,1718152302462,-772.43,0.00022739,2]
[329178789,1718152302473,-1791.65,0.00022739,2]
[329178790,1718152302484,-7973.12,0.00022739,2]
[329178791,1718152302496,-500.0,0.00022739,2]
[329178792,1718152302507,-500.0,0.00022739,2]
[329178793,1718152302518,-5053.24,0.00022739,2]
[329178794,1718152302530,-5354.26,0.00022739,2]
[329178795,1718152302541,-3948.83,0.00022739,2]
[329178796,1718152302551,-553.84,0.00022739,2]
[329178797,1718152302562,-1340.43,0.00022739,2]
[329178798,1718152302574,-709.59,0.00022739,2]
[329178799,1718152302586,-2722.79,0.00022739,2]
[329178800,1718152302597,-500.0,0.00022739,2]
[329178801,1718152302608,-3052.41,0.00022739,2]
[329178802,1718152302619,-500.0,0.00022739,2]
[329178803,1718152302630,-553.91,0.00022739,2]
[329178804,1718152302641,-1947.62,0.00022739,2]
[329178805,1718152302652,-2248.59,0.00022739,2]
[329178806,1718152302666,-1267.75,0.00022739,2]
[329178807,1718152302677,-21764.24,0.00022739,2]
[329178808,1718152302688,-500.0,0.00022739,2]
[329178809,1718152302698,-664.97,0.00022739,2]
[329178810,1718152302708,-3643.8,0.00022739,2]
[329178811,1718152302718,-933.23,0.00022739,2]